Cogmind - Beta 13 X2 @@@ ROGUE MODE // 2023.12.26 @ 17:16:12 Player: f3-rnm Result: Destroyed by FP-ROP(R) with Subdweller Laser Performance ------------- Evolutions (0) 0 Regions Visited (2) 400 Robots Destroyed (21) 105 Value Destroyed (735) 735 Prototype IDs (10) 200 Alien Tech Used (0) 0 Bonus (-52) -52 TOTAL SCORE: 1388 Bonus ------- Friendly Fire -52 Cogmind --------- Core Integrity 0/250 Matter 196/300 Energy 55/100 System Corruption 0% Temperature Cool (6) Movement Core (100) Ox1 Location -10/Subcaves Parts ------- > --- POWER (1) -------- (None) > --- PROPULSION (2) --- (None) > --- UTILITY (2) ------ Weapon Shielding > --- WEAPON (2) ------- Battle Rifle Battle Cannon > --- INVENTORY (5) ---- Large Matter Pod (150) Subdweller Shrapnel Launcher Large Botcube Peak State ------------ > --- POWER ------------ Ion Engine > --- PROPULSION ------- Light Treads Light Treads > --- UTILITY ---------- Small Storage Unit High-capacity Storage Unit > --- WEAPON ----------- Riot Gun Battle Cannon > --- INVENTORY -------- Ion Engine Light Treads Wheel Subdweller Monowheel Large Matter Pod Weapon Shielding Makeshift Light Armor Plating Subdweller Laser Beam Cannon Assault Rifle Battle Rifle Battle Rifle Subdweller Shrapnel Launcher Large Botcube [Rating: 14] Favorites ----------- Power Ion Engine Engine Ion Engine Propulsion Light Treads Treads Light Treads Utility Small Storage Unit Storage Small Storage Unit Protection Scrap Shield Weapon EM Pulse Gun Energy Gun EM Pulse Gun Ballistic Gun Battle Rifle Ballistic Cannon Battle Cannon Launcher Subdweller Shrapnel Launcher Build | -11 -10 -10 ------- Run | Yrd Mat Sub Slots Evolved . | . . . Power . | . . . Propulsion . | . . . Utility . | . . . Weapon . | . . . Parts Attached 21 | 6 1 14 Power 2 | 1 . 1 Engine 2 | 1 . 1 Core . | . . . Reactor . | . . . Propulsion 2 | 2 . . Treads 2 | 2 . . Leg . | . . . Wheel . | . . . Hover . | . . . Flight . | . . . Utility 4 | 1 1 2 Device . | . . . Storage 2 | 1 1 . Processor . | . . . Hackware . | . . . Protection 2 | . . 2 Artifact . | . . . Weapon 13 | 2 . 11 Energy Gun 4 | 1 . 3 Energy Cannon . | . . . Ballistic Gun 5 | 1 . 4 Ballistic Cannon 2 | . . 2 Launcher 2 | . . 2 Special Weapon . | . . . Impact Weapon . | . . . Slashing Weapon . | . . . Piercing Weapon . | . . . Special Melee Weapon . | . . . Unidentified Prototypes . | . . . Parts Lost 8 | . . 8 Power 2 | . . 2 Propulsion 2 | . . 2 Utility 1 | . . 1 Weapon 3 | . . 3 Highest Loss Streak 3 | . . 3 To Critical Strikes . | . . . Average Slot Usage (%) 94 | . 97 93 Engine 13 | . 14 13 Treads 27 | . 28 27 Storage 20 | . 25 19 Protection 3 | . . 4 Energy Gun 10 | . 14 10 Ballistic Gun 10 | . 14 9 Ballistic Cannon 6 | . . 7 Naked Turns . | . . . Heaviest Build 56 | 14 54 56 Greatest Support 40 | 40 40 40 Greatest Overweight (x) 1 | . 1 1 Average Overweight (x) . | . . . Largest Inventory Capacity 20 | 8 20 20 Average Capacity 15 | 7 17 15 Most Carried 18 | 5 8 18 Average Carried 9 | 2 7 10 Final Capacity 20 | 8 20 5 Final Carried 8 | 3 8 4 Class Distribution -------------------- 100% | Mutant Dominant Class ---------------- Mutant | -10/Materials Mutant | -10/Subcaves Resources | -11 -10 -10 ----------- Run | Yrd Mat Sub Matter Collected 959 | 153 143 663 Remotely . | . . . Salvage Created 801 | . 143 658 Parts 46 | . 8 38 Haulers Intercepted 1 | . 1 . Recyclers Shooed . | . . . Parts Field Recycled . | . . . Retrieved Matter . | . . . Parts Self-Destructed 8 | . . 8 Prevented 1 | . . 1 Kills | -11 -10 -10 ------- Run | Yrd Mat Sub Combat Hostiles Destroyed 20 | . 2 18 Guns 11 | . 2 9 Cannons 6 | . . 6 AOE 3 | . . 3 Classes Destroyed 6 | . 2 4 Hauler 1 | . 1 . Swarmer 2 | . . 2 Grunt 2 | . 2 . Sentry 1 | . . 1 Artisan 1 | . . 1 Subdweller 15 | . . 15 Best Kill Streak 3 | . 3 2 Combat Bots Only 2 | . 2 2 Max Kills in Single Turn 2 | . 1 2 Gunslinging . | . . . Exploded 2 | . . 2 Melee . | . . . Uniques/NPCs Destroyed . | . . . Combat | -11 -10 -10 -------- Run | Yrd Mat Sub Hostile Shots Fired 84 | . 4 80 Missed 21 | . 1 20 Damage Taken 1486 | . 33 1453 Core 263 | . 11 252 Absorbed by Shields . | . . . Core Remaining (%) 100 | 100 . . Volleys Fired 89 | . 6 83 Largest 2 | . 2 2 Hottest 90 | . 60 90 Shots Fired 172 | . 12 160 Gun 129 | . 12 117 Cannon 39 | . . 39 Launcher 4 | . . 4 Special . | . . . Kinetic 129 | . 6 123 Thermal . | . . . Explosive . | . . . Electromagnetic 43 | . 6 37 Robot Hit Streak 19 | . 8 19 Robot Miss Streak 2 | . 1 2 Penetration Max . | . . . Secondary Targets 1 | . 1 . Max Gunslinging Chain 1 | . 1 . Shots Hit Robots 96 | . 9 87 Core Hits 44 | . 6 38 Critical Kills . | . . . Critical Parts Destroyed . | . . . Critical Strikes 4 | . . 4 Destroy 1 | . . 1 Blast 3 | . . 3 Melee Attacks . | . . . Impact . | . . . Slashing . | . . . Piercing . | . . . Sneak Attacks . | . . . Combat Hostiles . | . . . Follow-up Attacks . | . . . Damage Inflicted 1899 | . 114 1785 Guns 981 | . 114 867 Cannons 476 | . . 476 Explosions 442 | . . 442 Melee . | . . . Ramming . | . . . Kinetic 1447 | . 37 1410 Thermal . | . . . Explosive . | . . . Electromagnetic 452 | . 77 375 Impact . | . . . Slashing . | . . . Piercing . | . . . Highest Corruption . | . . . Average Corruption . | . . . Corruption Purged . | . . . Corruption Blocked . | . . . Overload Shots . | . . . Overflow Damage 10 | . . 10 Projectiles . | . . . Explosions 10 | . . 10 Melee . | . . . Knockbacks 3 | . . 3 Impact . | . . . Kinetic 3 | . . 3 Secondary . | . . . Self-Inflicted Damage 113 | . . 113 Shots 4 | . . 4 Rammed . | . . . Targets Rammed . | . . . Kicked . | . . . Crushed . | . . . Highest Temperature 298 | . 18 298 Average Temperature 112 | . 16 157 Received Heat Transfer 564 | . 18 546 Siege Activations . | . . . Robots Corrupted . | . . . Combat Hostiles . | . . . Parts Fried 6 | . . 6 Impact Corruptions . | . . . Robots Melted . | . . . Combat Hostiles . | . . . Parts Melted 2 | . . 2 Heat Transferred . | . . . Parts Sabotaged . | . . . Parts Stolen . | . . . Parts Stripped . | . . . Power Chain Reactions . | . . . Missiles Intercepted . | . . . Alert | -11 -10 -10 ------- Run | Yrd Mat Sub Peak Influence 47 | . 47 . Initial . | . . . Average 27 | . 32 . Maximum Alert Level . | . . . Low Security (%) 100 | 100 100 . Level 1 . | . . . Level 2 . | . . . Level 3 . | . . . Level 4 . | . . . Level 5 . | . . . High Security . | . . . Max Security . | . . . Squads Dispatched . | . . . Investigation . | . . . Extermination . | . . . Reinforcement . | . . . Assault . | . . . Garrison . | . . . Intercept . | . . . Searches Triggered . | . . . Construction Impeded . | . . . Haulers Reinforced . | . . . Active Scanning Responses . | . . . Cargo Convoy Interrupts . | . . . Stealth | -11 -10 -10 --------- Run | Yrd Mat Sub Distress Signals . | . . . Communications Jammed . | . . . Distress Signals . | . . . Times Spotted 22 | . 2 20 Peak Tracking Total 3 | . 2 3 Tactical Retreats 2 | . . 2 Traps | -11 -10 -10 ------- Run | Yrd Mat Sub Traps Triggered 2 | . . 2 Indirectly . | . . . Trap Hack Attempts . | . . . Triggered . | . . . Disarmed . | . . . Reprogrammed . | . . . Reused . | . . . Traps Extracted . | . . . Installed . | . . . Triggered . | . . . Machines | -11 -10 -10 ---------- Run | Yrd Mat Sub Machines Disabled . | . . . Max in Single Turn . | . . . Machines Repaired . | . . . Machines Dismantled . | . . . Machines Sabotaged . | . . . Overloaded Fab Kills . | . . . Hacking | -11 -10 -10 --------- Run | Yrd Mat Sub Machines Accessed 2 | . . 2 Terminals . | . . . Fabricators . | . . . Repair Stations . | . . . Recycling Units . | . . . Scanalyzers . | . . . Garrison Access . | . . . Total Hacks 2 | . . 2 Successful 2 | . . 2 Failed . | . . . Catastrophic . | . . . Database Lockouts . | . . . Manual . | . . . Terminals . | . . . Fabricators . | . . . Repair Stations . | . . . Recycling Units . | . . . Scanalyzers . | . . . Garrison Access . | . . . Terminal Hacks 2 | . . 2 Record 1 | . . 1 Derelict Proto ID Bank 1 | . . 1 Fabricator Hacks . | . . . Repair Station Hacks . | . . . Recycling Unit Hacks . | . . . Scanalyzer . | . . . Garrison Access Hacks . | . . . Unauthorized Hacks . | . . . Terminals . | . . . Fabricators . | . . . Repair Stations . | . . . Recycling Units . | . . . Scanalyzers . | . . . Garrison Access . | . . . Data Cores Recovered . | . . . Used . | . . . Hacking Detections . | . . . Full Trace Events . | . . . Feedback Events . | . . . Feedback Blocked . | . . . Robot Schematics Acquired . | . . . Robots Built . | . . . Authchips . | . . . Time . | . . . Total Robot Build Rating . | . . . Part Schematics Acquired . | . . . Parts Built . | . . . Authchips . | . . . Time . | . . . Total Part Build Rating . | . . . Parts Repaired . | . . . Time . | . . . Parts Recycled . | . . . Recycled Matter . | . . . Retrieved Matter . | . . . Retrieved Components . | . . . Parts Scanalyzed . | . . . Part Schematics Acquired . | . . . Parts Damaged . | . . . Bothacking | -11 -10 -10 ------------ Run | Yrd Mat Sub Used RIF Installer . | . . . Robots Hacked . | . . . Non-combat . | . . . Combat . | . . . Robot Hacks Applied . | . . . Relay Couplers Released . | . . . Fabnet Peak Effective % . | . . . Robots Rewired . | . . . Allies Hacked . | . . . Hacks Repelled . | . . . Allies | -11 -10 -10 -------- Run | Yrd Mat Sub Total Allies . | . . . Largest Group . | . . . Highest-Rated Group . | . . . Highest-Rated Ally . | . . . Total Orders . | . . . Ally Attacks . | . . . Total Damage . | . . . Kills . | . . . Allies Corrupted . | . . . Allies Melted . | . . . Intel | -11 -10 -10 ------- Run | Yrd Mat Sub Robot Analysis Total . | . . . Derelict Logs Recovered 2 | . . 2 Drone Launches . | . . . Drone Recoveries . | . . . Exploration | -11 -10 -10 ------------- Run | Yrd Mat Sub Turns Passed 3809 | 92 536 3181 Spaces Moved 1515 | 57 84 1374 Core 13 | 13 . . Treads 1502 | 44 84 1374 Legs . | . . . Wheels . | . . . Hover . | . . . Flight . | . . . Fastest Speed 50 | 50 160 160 Average Speed 204 | 134 194 207 Slowest Speed 240 | 160 240 240 Overloaded Moves . | . . . Propulsion Burnouts . | . . . Robots Hopped . | . . . Cave-ins Triggered . | . . . Exploration Rate (%) 31 | 5 10 80 Regions Visited 2 Branch Regions 1 Pre-discovered Areas 2 | . . 2 Known Exits Taken . | . . . Unknown Exits Taken 2 | 1 1 . Scrap Searched 11 | . . 11 Spaces Dug . | . . . Terrain Destroyed 60 | . . 60 Melee . | . . . Projectile 2 | . . 2 AOE 58 | . . 58 Terrain Rammed . | . . . Walls Destroyed . | . . . Machines Disabled . | . . . Actions | -11 -10 -10 --------- Run | Yrd Mat Sub Total 2059 | 73 446 1540 Wait 398 | . 350 48 Move 1513 | 56 83 1374 Hop . | . . . Pick Up 30 | 10 6 14 Fast Attach 1 | . . 1 Attach 12 | 6 1 5 Detach 1 | . . 1 Swap 8 | . . 8 Drop 4 | 1 . 3 Fire 89 | . 6 83 Melee . | . . . Ram . | . . . Kick . | . . . Crush . | . . . Escape Stasis . | . . . Rewire . | . . . Trap . | . . . Miscellaneous 3 | . . 3 Route ------- -11/Scrapyard -10/Materials -10/Subcaves (discovered 2 exits: [*Mat x2]) History --------- Turn | Location | Event 2 | -11/Scrapyard | Discovered new exit (range 16) 93 | -11/Scrapyard | Entered Materials 309 | -10/Materials | Build established: Mutant 608 | -10/Materials | Discovered new exit (range 5) 629 | -10/Materials | Entered Subcaves 1191 | -10/Subcaves | Visited 4L-MR0's lab 1210 | -10/Subcaves | Found Lrg. Botcube 1579 | -10/Subcaves | Shifting Twisted Machinery released Sub. Shrapnel Launcher 1637 | -10/Subcaves | Shifting Twisted Machinery released Mak. Light Armor Plating 2016 | -10/Subcaves | Core integrity fell below 50% 2294 | -10/Subcaves | Learned Materials interactive machine intel 2324 | -10/Subcaves | Discovered new exit (range 15) 2597 | -10/Subcaves | Learned location of Zion (-7) 2611 | -10/Subcaves | Visited Clippyterm 2700 | -10/Subcaves | Discovered new exit (range 7) 2713 | -10/Subcaves | Met a Zionite searching for "candidates" 2746 | -10/Subcaves | Core integrity fell below 20% 2799 | -10/Subcaves | Shifting Twisted Machinery released Sub. Laser 3092 | -10/Subcaves | Shifting Twisted Machinery released Sub. Monowheel 3161 | -10/Subcaves | Shifting Twisted Machinery released Multitool 3655 | -10/Subcaves | Disturbed a concealed Subdweller 3800 | -10/Subcaves | A Subdweller sparked back to life 3800 | -10/Subcaves | A Subdweller sparked back to life 3800 | -10/Subcaves | A Subdweller sparked back to life 3810 | -10/Subcaves | Destroyed by FP-ROP(R) with Subdweller Laser Last Messages --------------- 03677_ Found Sub. Laser. 03677_ Found 27 Matter. 03678_ Acquired 27 matter. 03678_ Searching scrap... 03678_ Found Battle Cannon. 03678_ Found Mak. Light Armor Plating. 03678_ Found 26 Matter. 03679_ Acquired 26 matter. 03682_ Acquired Battle Cannon. 03800_ OU-Z12(R) creaks and sparks as it begins to move. 03800_ FP-ROP(R) creaks and sparks as it begins to move. 03800_ 5G-7QM(R) creaks and sparks as it begins to move. 03802_ Lgt. Treads destroyed. 03803_ 5G-7QM(R) Sub. Optics blasted off. 03804_ Scrap Shield destroyed. 03806_ 5G-7QM(R) destroyed. 03806_ OU-Z12(R) destroyed. 03806_ Lgt. Treads destroyed. 03806_ Destroyed Lgt. Treads. 03809_ FP-ROP(R) affixes Scrap Shield Fragment to Scrap Shield. Map ----- +----------------------------------------------------+ | ???????## #### #?????????????????????? | | ???????# #?## ##?????????????????????? | | ???????##""##??# ##??????????????????????? | | ???????#""""#??## ##???????????????????????? | | ???????##""""#??# ### #???????????????????????? | | ????????#""" ## ## ##???????????????????????? | | ????????##"" ### ## # #????????????????????????? | | ?????????## ?# #######????????????????????????? | | ????????????? ??###??????????????????????????????? | | ?????????????????????????????????#???????????????? | | ????????????????????????????????? ???????????????? | | ???????????????????????????????? ???????????????? | | ???????????????????????????????? ???????????????? | | ???????????????????????????????? ##??????????????? | | ??????????????????????????????## #??????????????? | | ????????????????????????????## ###????????????? | | ??????????????????????###?### #????????????? | | ??????????????????????# ## ####?????????? | | ?????????????????????## ??????????? | | ???????????? ??###### ????????????? | | ???????????? # ;;;;# ??????????????? | | ??????????? ;# #?????????????### | | ??????????? ; #????????????## | | ?????????? = ##???####???## | | ?????????? !R ##??# #### | | ?????????? !%& @ #???# # | | ??????????# & ## ###???### ##### | | ??????????# ;#### ##?#####?## #???? | | ???????????#### ;;#??# #?## ### ##???? | | ??????????????## ## ####??# ### # #???? | | ???????????????# ??##??????# ##???? | | ???????????????## ???????????# #???? | | ?????????????????????????????# # # #???? | | ????????????????????????????## #######???? | | ???????????????????????????## #?????????? | | ???????????????????????????# ##?????????? | | ???????????????????????????### #?????????? | | ?????????????????????????????# ### ##?????????? | | ?????????????????#####???????# #?# #??????????? | | ????????????????## ##?????## ### #??????????? | | ????????????????# #?????# ## ###????????? | | ?????????????????# ###???## ### #"###??????? | | ???????????????###?# ###### """##?????? | | ???????????????# ##?# ## """"#?????? | | ???????????????# #??# ##????? | | ??????????????## #?## ### ###### | | ??????????????# ### #?## " " # | | ?????????????## ## "##?# "" " | | ????????????## ### ##""" ""= | | ????????????# ###### """""##""" | +----------------------------------------------------+ Best States ------------- Heat Dissipation 25 Energy Generation 10 Energy Capacity 250 Matter Stores 300 Matter Capacity 300 Sight Range 16 Terrain Scan Density 10 Armor Coverage 800 Evasion (%) 50 Recoil Reduction 2 Item Schematics ----------------- None Robot Schematics ------------------ None Fabricated ------------ Nothing Alien Tech Used ----------------- None Achievements -------------- None Challenges ------------ None Game ------ Seed WeaponTimingSpecial Manual? 0 Play Time 00:11:42 Cumulative 134.6 hours Start 2023.12.26 @ 17:06:07 End 2023.12.26 @ 17:16:12 Sessions 1 Manual Loads 0 Difficulty Rogue Special Mode None Game No. 153 Rogue 117 Adventurer 36 Explorer 0 Win Type - Total 8 Types 2/0/6/0/0/0/0/0/0 Lore% 54 Gallery% 77 Achievement% 64 Wizard Run 0 Options --------- ASCII 0 Keyboard 0 Movement Mouse Keybinds 0 Fullscreen 1 Font 18/SmallcapsGlow Map View 76x50 Zoom Use 0% Tactical HUD 1 Map Filters NONE Filters NONE Steam 1 RUN: f357010e-a734-4d22-beef-ba394dec35be